bitfinex-derivatives/quotes_SOLF0:USTF0_20250823
["timestamp","ask_amount","ask_price","bid_price","bid_amount"]
[1755949209178,2.74,202.66,202.56,18.14609923]
[1755949209378,2.74,202.66,202.57,15.46609923]
[1755949209580,2.74,202.66,202.58,11.0601699]
[1755949209881,2.74,202.66,202.59,1.95971179]
[1755949210083,2.74,202.66,202.56,2.68]
[1755949210284,2.74,202.66,202.57,15.47254186]
[1755949210580,4.9367,202.63,202.58,11.06101008]
[1755949210775,2.74,202.62,202.59,1.95986875]
[1755949210968,2.74,202.62,202.59,2.68]
[1755949211477,2.74,202.62,202.6,1.959897]
[1755949211779,2.74,202.62,202.59,2.68]
[1755949211981,2.74,202.62,202.6,1.95992563]
[1755949212183,2.74,202.62,202.59,2.68]
[1755949212384,2.74,202.62,202.6,1.95992563]
[1755949212583,2.74,202.65,202.54,2.68]
[1755949212773,2.74,202.65,202.55,15.47685177]
[1755949212978,2.74,202.65,202.56,15.47685177]
[1755949213182,4.9375,202.6,202.57,15.47657592]
[1755949213482,7.6775,202.6,202.58,11.06429161]
[1755949213782,7.6775,202.6,202.59,1.96182617]
[1755949216083,7.6775,202.6,202.54,2.68]
[1755949216384,7.6775,202.6,202.56,2.68]
[1755949216582,7.6775,202.6,202.57,18.14806557]
[1755949216783,7.6775,202.6,202.58,11.05828142]
[1755949216982,7.6775,202.6,202.59,1.960707]
[1755949217182,7.6775,202.6,202.59,1.96070052]
[1755949217584,7.6775,202.6,202.54,2.68]
[1755949217784,7.6775,202.6,202.56,2.68]
[1755949217982,7.6775,202.6,202.57,11.0685747]
[1755949218179,7.6775,202.6,202.58,1.96083288]
[1755949218483,7.6775,202.6,202.56,2.68]
[1755949218679,7.6775,202.6,202.57,11.07036741]
[1755949218883,7.6775,202.6,202.58,1.96115046]
[1755949219183,7.6775,202.6,202.56,2.68]
[1755949219385,7.6775,202.6,202.57,15.48088573]
[1755949219685,7.6775,202.6,202.58,1.96137237]
[1755949219886,2.74,202.58,202.52,4.9392]
[1755949220086,2.74,202.58,202.54,2.68]
[1755949220384,7.6777,202.59,202.56,2.68]
[1755949220581,7.6777,202.59,202.57,15.4822462]
[1755949220785,7.6777,202.59,202.58,11.07177098]
[1755949223488,4.9377,202.59,202.58,11.07177098]
[1755949225596,4.9377,202.59,202.56,2.68]
[1755949225895,2.74,202.58,202.57,1.96186778]
[1755949228300,2.74,202.58,202.52,2.68]
[1755949228301,7.6781,202.58,202.52,2.68]
[1755949228599,7.6781,202.58,202.53,15.48944976]
[1755949228800,7.6781,202.58,202.55,2.68]
[1755949229000,7.6781,202.58,202.56,6.38086981]
[1755949229196,7.6781,202.58,202.55,2.68]
[1755949229396,7.6781,202.58,202.56,6.38014322]
[1755949229598,7.6781,202.58,202.55,2.68]
[1755949229897,7.6781,202.58,202.56,6.38015104]
[1755949230098,7.6781,202.58,202.55,2.68]
[1755949230298,7.6781,202.58,202.56,1.96146726]
[1755949230601,7.6781,202.58,202.55,2.68]
[1755949230899,7.6781,202.58,202.56,1.96140652]
[1755949231099,7.6781,202.58,202.55,2.68]
[1755949232395,7.6781,202.58,202.56,1.96153516]
[1755949232600,7.6781,202.58,202.55,2.68]
[1755949232802,7.6781,202.58,202.56,1.96153626]
[1755949232998,4.9382,202.57,202.55,2.68]
[1755949233200,4.9382,202.57,202.56,1.96153626]
[1755949233400,4.9382,202.57,202.56,1.96174187]
[1755949234096,4.9382,202.57,202.55,2.68]
[1755949234304,7.5482,202.57,202.55,2.68]
[1755949235201,2.61,202.63,202.56,1.96220303]
[1755949235405,2.61,202.63,202.57,13.66970488]
[1755949235700,2.61,202.62,202.58,1.96220303]
[1755949235897,2.61,202.61,202.57,2.59]
[1755949236094,2.61,202.61,202.58,1.96186148]
[1755949236298,2.61,202.6,202.57,2.59]
[1755949236500,7.5475,202.6,202.58,1.96218941]
[1755949236700,8.87803841,202.64,202.51,4.13800448]
[1755949237000,6.26803841,202.64,202.59,2.59]
[1755949237206,2.61,202.62,202.59,2.59]
[1755949237410,7.5472,202.61,202.59,2.59]
[1755949242408,7.5472,202.61,202.52,9.07720448]
[1755949242614,4.9375,202.6,202.58,2.59]
[1755949242812,4.9375,202.6,202.59,6.38661644]
[1755949243111,4.9375,202.6,202.59,11.0877963]
[1755949244405,4.9375,202.6,202.59,4.70117986]
[1755949244610,4.9375,202.6,202.59,11.09544474]
[1755949244810,4.9375,202.6,202.59,13.68544474]
[1755949245008,4.9375,202.6,202.59,13.68575218]
[1755949245403,4.9375,202.6,202.59,13.68587506]
[1755949246009,7.547,202.62,202.59,13.68587506]
[1755949246208,7.547,202.62,202.6,6.39149666]
[1755949246409,2.61,202.61,202.59,2.59]
[1755949246611,2.61,202.61,202.6,6.39181452]
[1755949246819,2.61,202.61,202.6,11.09856696]
[1755949247105,7.5472,202.61,202.6,11.09856696]
[1755949248513,4.9372,202.61,202.6,11.09856696]
[1755949250009,7.5472,202.61,202.6,11.09856696]
[1755949250312,4.9372,202.61,202.6,11.09856696]
[1755949250514,4.9372,202.61,202.6,13.68856696]
[1755949251315,4.9372,202.61,202.6,8.98181452]
[1755949252120,4.9372,202.61,202.6,4.55579141]
[1755949253714,4.9372,202.61,202.6,1.96579141]
[1755949253912,4.9375,202.6,202.54,2.59]
[1755949254112,4.9375,202.6,202.56,2.59]
[1755949254308,4.9375,202.6,202.58,2.59]
[1755949254517,4.9375,202.6,202.59,13.65445519]
[1755949260421,4.937,202.62,202.59,11.06445519]
[1755949260621,4.937,202.62,202.6,9.23857395]
[1755949260822,4.937,202.62,202.61,1.96727579]
[1755949261126,4.937,202.62,202.61,4.55727579]
[1755949261629,4.937,202.62,202.61,1.96727579]
[1755949261825,7.547,202.62,202.61,1.96727579]
[1755949262128,7.547,202.62,202.54,9.07670448]
[1755949262322,7.547,202.62,202.55,13.65591344]
[1755949262527,4.9372,202.61,202.57,2.59]
[1755949262728,7.5472,202.61,202.59,2.59]
[1755949263034,7.5472,202.61,202.6,6.6493459]
[1755949265429,7.5472,202.61,202.6,1.96753981]
[1755949265630,4.9385,202.56,202.52,2.81]
[1755949265827,4.9385,202.56,202.54,2.81]
[1755949266126,4.9385,202.56,202.55,9.09591943]
[1755949268034,4.9385,202.56,202.55,11.90591943]
[1755949269033,4.9385,202.56,202.55,7.49065687]
[1755949269431,4.9385,202.56,202.55,11.90094098]
[1755949271027,4.9385,202.56,202.55,9.09094098]
[1755949271533,4.9385,202.56,202.55,4.67692404]
[1755949272035,4.9385,202.56,202.55,2.81]
[1755949274036,4.9387,202.55,202.51,2.81]
[1755949274236,4.9387,202.55,202.53,2.81]
[1755949275528,4.9389,202.54,202.48,2.81]
[1755949275835,4.9389,202.54,202.51,2.81]
[1755949276034,4.9389,202.54,202.52,11.90049705]
[1755949276233,4.9389,202.54,202.53,4.67650346]
[1755949277238,4.9389,202.54,202.52,2.81]
[1755949277736,4.9389,202.54,202.53,1.91565641]
[1755949280538,4.01466886,202.6,202.53,6.59124314]
[1755949280836,4.01466886,202.6,202.54,2.81]
[1755949281042,2.66,202.59,202.54,2.81]
[1755949281241,2.66,202.58,202.55,4.72423969]
[1755949281442,4.938,202.58,202.56,6.58943193]
[1755949281642,4.938,202.58,202.49,9.07790448]
[1755949281643,2.66,202.57,202.49,2.81]
[1755949281833,4.01466886,202.56,202.5,11.00182397]
[1755949282037,2.66,202.54,202.51,11.00182397]
[1755949282244,2.66,202.54,202.52,11.00182397]
[1755949282440,2.66,202.54,202.53,6.59148484]
[1755949282640,7.599,202.54,202.53,6.59148484]
[1755949284048,4.939,202.54,202.53,6.59148484]
[1755949284554,11.61316886,202.56,202.53,9.40148484]
[1755949284858,11.61316886,202.56,202.54,1.91478438]
[1755949285049,11.61316886,202.56,202.53,2.81]
[1755949285353,2.66,202.55,202.54,1.91411321]
[1755949286356,2.66,202.55,202.53,2.81]
[1755949286552,7.5987,202.55,202.53,2.81]
[1755949291763,7.5987,202.55,202.54,1.91326684]
[1755949292162,2.66,202.52,202.5,2.81]
[1755949292460,2.66,202.52,202.51,6.58732596]
[1755949292661,4.9392,202.53,202.51,9.39732596]
[1755949292856,7.5992,202.53,202.52,1.91358414]
[1755949293256,7.5992,202.53,202.51,2.81]
[1755949294061,7.5992,202.53,202.49,2.6]
[1755949294362,7.5992,202.53,202.5,13.59522712]
[1755949294556,7.5992,202.53,202.51,6.58727541]
[1755949294764,7.5992,202.53,202.5,2.6]
[1755949294963,7.5992,202.53,202.51,9.18696724]
[1755949295166,7.5992,202.53,202.51,2.6]
[1755949296261,4.01466886,202.54,202.48,2.6]
[1755949296465,2.6,202.52,202.49,10.99251733]
[1755949296663,2.6,202.52,202.5,10.99251733]
[1755949296863,2.6,202.52,202.51,1.91310605]
[1755949297571,7.5394,202.52,202.51,1.91310605]
[1755949299561,2.6,202.51,202.45,2.6]
[1755949299771,2.6,202.49,202.46,6.5890755]
[1755949299961,2.6,202.48,202.45,2.6]
[1755949300161,2.6,202.48,202.46,6.59091444]
[1755949300364,2.6,202.48,202.45,2.6]
[1755949300565,2.6,202.48,202.46,11.00400173]
[1755949300566,7.5404,202.48,202.46,11.00400173]
[1755949300767,7.5404,202.48,202.47,6.58998486]
[1755949301567,2.6,202.48,202.47,6.58998486]
[1755949304165,7.5403,202.48,202.47,6.58998486]
[1755949304372,7.5403,202.48,202.47,6.58746673]
[1755949304773,8.95456886,202.5,202.47,6.58746673]
[1755949304964,11.55456886,202.5,202.48,1.91442216]
[1755949305169,2.6,202.49,202.46,2.6]
[1755949305362,2.6,202.49,202.47,6.58540053]
[1755949305568,2.6,202.49,202.46,2.6]
[1755949305770,2.6,202.49,202.47,6.58540053]
[1755949306072,2.6,202.49,202.46,2.6]
[1755949306271,2.6,202.49,202.47,6.58539469]
[1755949306472,2.6,202.49,202.46,2.6]
[1755949306675,2.6,202.49,202.47,6.58467099]
[1755949306867,24.6945,202.54,202.49,2.6]
[1755949306868,6.61466886,202.54,202.49,2.6]
[1755949307171,4.01466886,202.56,202.5,13.59219085]
[1755949307372,4.01466886,202.56,202.51,6.5827379]
[1755949307572,7.5387,202.55,202.52,1.91260468]
[1755949307872,7.5387,202.55,202.51,2.6]
[1755949308177,2.6,202.54,202.52,6.5286705]
[1755949308472,2.6,202.54,202.53,1.91231804]
[1755949310280,2.6,202.54,202.53,1.9132678]
[1755949313575,7.5387,202.55,202.53,1.9132678]
[1755949313776,7.5387,202.55,202.54,1.9132678]
[1755949314381,7.5387,202.55,202.51,2.6]
[1755949314580,7.5389,202.54,202.52,6.49096936]
[1755949314783,7.5389,202.54,202.53,1.91470222]
[1755949318183,7.5389,202.54,202.53,1.91494259]
[1755949318879,7.5389,202.54,202.53,1.91510833]
[1755949319076,2.6,202.59,202.53,4.51510833]
[1755949319279,2.6,202.58,202.54,2.6]
[1755949319479,2.6,202.57,202.54,2.6]
[1755949319681,93.3450022,202.6,202.55,2.6]
[1755949319986,93.3450022,202.6,202.48,2.6]
[1755949320286,93.3450022,202.6,202.5,2.6]
[1755949320479,93.3450022,202.6,202.51,10.90799798]
[1755949320680,2.6,202.59,202.53,2.6]
[1755949320882,2.6,202.59,202.54,6.54347368]
[1755949321082,2.6,202.59,202.55,1.91487582]
[1755949321283,2.6,202.59,202.53,2.6]
[1755949321588,4.9385,202.56,202.53,2.6]
[1755949321785,7.5385,202.56,202.53,2.6]
[1755949324887,2.61,202.55,202.47,2.71]
[1755949325088,2.61,202.55,202.48,10.96160896]
[1755949325392,2.61,202.55,202.49,13.67160896]
[1755949325578,2.61,202.54,202.51,2.71]
[1755949326589,7.5489,202.54,202.51,2.71]
[1755949326791,4.9389,202.54,202.51,2.71]
[1755949326985,2.61,202.53,202.51,2.71]
[1755949327192,4.9394,202.52,202.45,2.71]
[1755949327388,4.9394,202.52,202.47,2.71]
[1755949327588,7.5494,202.52,202.49,2.71]
[1755949327788,7.5497,202.51,202.49,2.71]
[1755949328180,7.5497,202.51,202.5,1.91602951]
[1755949328789,7.5492,202.53,202.5,4.62602951]
[1755949328989,7.5492,202.53,202.5,2.71]
[1755949331491,4.9392,202.53,202.51,13.67290059]
[1755949331698,7.5487,202.55,202.52,9.25714169]
[1755949331897,7.5487,202.55,202.53,1.91589822]
[1755949332197,2.61,202.53,202.44,6.85626474]
[1755949332386,6.62771512,202.53,202.45,13.67404475]
[1755949332586,6.62771512,202.53,202.46,10.96404475]
[1755949332788,4.9394,202.52,202.47,13.67404475]
[1755949332987,7.5494,202.52,202.49,2.71]
[1755949333194,7.5494,202.52,202.5,6.54773224]
[1755949333392,4.9394,202.52,202.51,1.91607475]
[1755949333800,7.5494,202.52,202.51,1.91607475]
[1755949335801,7.5494,202.52,202.49,2.71]
[1755949336001,7.5494,202.52,202.5,1.91642983]
[1755949336298,7.5494,202.52,202.49,2.71]
[1755949336504,7.5494,202.52,202.5,6.54860783]
[1755949336710,7.5494,202.52,202.51,1.91625499]
[1755949339301,7.5494,202.52,202.44,6.85626474]
[1755949339302,2.61,202.52,202.44,2.71]
[1755949339500,4.01771512,202.49,202.46,2.71]
[1755949339806,2.61,202.49,202.47,10.96274338]
[1755949340002,2.61,202.49,202.48,10.96257058]
[1755949340403,2.61,202.49,202.48,6.54472248]
[1755949340597,2.61,202.49,202.48,10.96036803]
[1755949341207,2.61,202.49,202.41,2.71]
[1755949341407,2.61,202.46,202.43,2.71]
[1755949341707,2.61,202.46,202.44,10.9593394]
[1755949342006,2.61,202.46,202.45,10.9593394]
[1755949342401,7.5509,202.46,202.45,1.91626473]
[1755949343200,4.9412,202.45,202.39,2.71]
[1755949343402,11.56891512,202.45,202.41,2.71]
[1755949343601,11.56891512,202.45,202.42,10.95680245]
[1755949343801,11.56891512,202.45,202.43,10.95680245]
[1755949344003,8.95891512,202.45,202.44,1.91579715]
[1755949344508,11.56891512,202.45,202.44,1.91579715]
[1755949345809,11.56891512,202.45,202.44,1.91498287]
[1755949346309,11.56891512,202.45,202.44,1.91454914]
[1755949346812,4.01771512,202.47,202.44,1.91454914]
[1755949347102,122.99,202.48,202.45,4.62454914]
[1755949347307,122.99,202.48,202.45,2.71]
[1755949349710,2.61,202.47,202.42,2.71]
[1755949349911,2.61,202.47,202.43,9.24228074]
[1755949350110,2.61,202.47,202.44,4.62314307]
[1755949350312,2.61,202.47,202.44,2.71]
[1755949350605,2.61,202.46,202.44,2.71]
[1755949352011,4.9406,202.47,202.44,2.71]
[1755949352314,7.5506,202.47,202.44,2.71]
[1755949352913,2.61,202.46,202.44,2.71]
[1755949353513,7.5509,202.46,202.42,2.79]
[1755949353714,7.5509,202.46,202.43,6.52879596]
[1755949353913,7.5509,202.46,202.44,1.91212246]
[1755949354108,7.5509,202.46,202.42,2.79]
[1755949354413,7.5509,202.46,202.43,6.52841545]
[1755949354612,7.5509,202.46,202.44,1.91201102]
[1755949354915,7.5509,202.46,202.44,2.79]
[1755949357416,4.9409,202.46,202.44,2.79]
[1755949357715,2.84,202.49,202.45,1.91113115]
[1755949357912,123.24,202.5,202.47,2.79]
[1755949358118,2.84,202.5,202.4,4.1412372]
[1755949358313,120.4,202.51,202.42,2.79]
[1755949358510,120.4,202.51,202.44,2.79]
[1755949358707,120.4,202.51,202.45,10.92661944]
[1755949358919,123.24,202.51,202.47,2.79]
[1755949359308,120.4,202.51,202.47,2.79]
[1755949359510,4.9402,202.49,202.47,2.79]
[1755949361913,4.9407,202.47,202.4,2.79]
[1755949362114,4.9407,202.47,202.42,2.79]
[1755949362313,4.9407,202.47,202.44,2.79]
[1755949362517,4.9407,202.47,202.45,1.9112295]
[1755949362716,4.9409,202.46,202.4,2.79]
[1755949362920,2.84,202.47,202.41,10.91710178]
[1755949363219,2.84,202.46,202.42,13.70710178]
[1755949363524,7.781,202.46,202.43,9.31642569]
[1755949363821,7.781,202.46,202.43,2.79]
[1755949364016,7.7811,202.45,202.38,2.79]
[1755949364223,2.84,202.45,202.39,10.91916398]
[1755949364420,2.84,202.45,202.4,4.61768204]
[1755949364621,4.9417,202.43,202.41,1.91255442]
[1755949364823,2.84,202.46,202.42,4.70255442]
[1755949365021,2.84,202.45,202.42,2.79]
[1755949365226,4.9414,202.44,202.37,2.79]
[1755949365412,4.9414,202.44,202.38,10.92317522]
[1755949365618,7.7814,202.44,202.39,10.92317522]
[1755949365817,7.7814,202.44,202.4,13.71276567]
[1755949366013,7.7814,202.44,202.41,6.53008193]
[1755949366223,2.84,202.43,202.42,1.91251049]
[1755949366420,7.7808,202.46,202.42,1.91251049]
[1755949366625,4.9408,202.46,202.44,2.79]
[1755949367024,4.9408,202.46,202.37,2.79]
[1755949367228,4.9408,202.46,202.39,2.79]
[1755949367524,4.9408,202.46,202.42,2.79]
[1755949367729,4.9408,202.46,202.43,4.70234235]
[1755949367925,7.7808,202.46,202.43,2.79]
[1755949368325,7.7808,202.46,202.44,2.79]
[1755949368527,7.7808,202.46,202.36,68.1249347]
[1755949368528,4.9403,202.48,202.37,2.79]
[1755949368728,4.9403,202.48,202.39,2.79]
[1755949369027,4.9403,202.48,202.41,2.79]
[1755949369231,4.9403,202.48,202.43,2.79]
[1755949369425,4.9403,202.48,202.45,2.79]
[1755949369622,4.9403,202.48,202.46,2.79]
[1755949370326,7.7803,202.48,202.41,4.9419]
[1755949370624,4.9407,202.47,202.44,2.79]
[1755949371137,2.84,202.48,202.44,2.79]
[1755949371339,2.84,202.48,202.45,1.91371836]
[1755949371535,4.9405,202.47,202.46,1.91371836]
[1755949372238,7.7805,202.47,202.46,1.91371836]
[1755949373840,7.7805,202.47,202.46,1.91425639]
[1755949374235,2.84,202.47,202.46,6.5475718]
[1755949374434,2.84,202.47,202.46,6.5476206]
[1755949376637,7.7804,202.48,202.46,6.5476206]
[1755949376839,7.7804,202.48,202.47,1.91430519]
[1755949377039,7.7804,202.48,202.47,1.91499321]
[1755949378341,7.7804,202.48,202.47,6.55162123]
[1755949380337,2.84,202.54,202.47,10.95306914]
[1755949380535,2.84,202.55,202.49,2.79]
[1755949380732,2.84,202.54,202.51,2.79]
[1755949380944,2.84,202.54,202.52,1.91499321]
[1755949381144,2.84,202.54,202.51,2.79]
[1755949381341,2.84,202.54,202.52,6.65641467]
[1755949381544,2.84,202.54,202.52,2.79]
[1755949381943,4.9387,202.55,202.53,2.79]
[1755949382344,120.36,202.56,202.54,2.79]
[1755949382543,120.36,202.56,202.47,2.79]
[1755949382839,120.36,202.56,202.49,2.79]
[1755949383044,120.36,202.56,202.5,11.04824142]
[1755949383348,123.2,202.56,202.52,2.79]
[1755949383542,128.1385,202.56,202.53,6.65247441]
[1755949383749,128.1385,202.56,202.52,2.79]
[1755949384047,128.1385,202.56,202.53,6.65095715]
[1755949384246,125.2985,202.56,202.49,2.71]
[1755949384546,125.2985,202.56,202.51,2.71]
[1755949384747,125.2985,202.56,202.53,2.71]
[1755949385147,128.0385,202.56,202.53,2.71]
[1755949387647,115.4330022,202.6,202.54,1.9109424]
[1755949387648,4.9378,202.58,202.54,1.9109424]
[1755949387844,4.9378,202.58,202.56,2.71]
[1755949388845,4.9382,202.57,202.52,2.71]
[1755949389050,7.6782,202.57,202.53,9.34787933]
[1755949389249,7.6782,202.57,202.54,6.63787933]
[1755949389448,7.6782,202.57,202.53,2.71]
[1755949389647,7.6782,202.57,202.54,1.90931127]
[1755949389946,7.6782,202.57,202.54,2.71]
[1755949390151,4.9382,202.57,202.54,2.71]
[1755949390347,2.74,202.56,202.54,2.71]
[1755949390551,4.9382,202.57,202.54,2.71]
[1755949390853,4.9385,202.56,202.54,2.71]
[1755949393653,7.6785,202.56,202.54,2.71]
[1755949394650,4.9385,202.56,202.54,2.71]
[1755949395345,4.9379,202.58,202.54,2.71]
[1755949395549,4.9379,202.58,202.49,2.71]
[1755949395750,4.9379,202.58,202.5,11.00711568]
[1755949396053,4.9379,202.58,202.52,2.71]
[1755949396254,4.9379,202.58,202.55,2.71]
[1755949396454,7.6779,202.58,202.55,2.71]
[1755949396855,4.9382,202.57,202.55,2.71]
[1755949397057,4.9382,202.57,202.51,4.9394]
[1755949397058,7.6782,202.57,202.52,2.71]
[1755949397247,7.6782,202.57,202.53,9.33584199]
[1755949397450,7.6782,202.57,202.54,1.90663351]
[1755949397656,2.74,202.55,202.5,2.71]
[1755949397955,2.74,202.54,202.51,9.34184771]
[1755949398156,2.74,202.54,202.52,6.63184771]
[1755949398364,2.74,202.58,202.48,2.71]
[1755949398561,2.74,202.58,202.49,6.63408443]
[1755949398756,2.74,202.58,202.5,6.63408443]
[1755949398953,2.74,202.58,202.48,2.71]
[1755949399148,2.74,202.58,202.49,6.63433671]
[1755949399453,2.74,202.58,202.5,6.63433671]
[1755949399648,2.74,202.58,202.48,2.71]
[1755949399957,7.6792,202.53,202.49,9.34204271]
[1755949400157,24.691,202.57,202.5,9.34204271]
[1755949400359,2.74,202.56,202.5,2.71]
[1755949400558,4.9394,202.52,202.47,2.71]
[1755949400758,7.6794,202.52,202.49,2.71]
[1755949400960,2.74,202.51,202.45,4.9409]
[1755949401154,2.74,202.51,202.47,2.71]
[1755949401352,2.74,202.51,202.48,7.08997853]
[1755949401551,2.74,202.51,202.49,6.63514397]
[1755949401754,2.74,202.51,202.5,1.90752078]
[1755949402251,2.74,202.51,202.5,6.63561292]
[1755949402760,2.74,202.5,202.46,2.71]
[1755949402958,2.74,202.53,202.47,11.02030812]
[1755949403155,2.74,202.53,202.48,6.6377161]
[1755949403353,2.74,202.53,202.46,2.71]
[1755949403554,2.74,202.53,202.47,11.02114055]
[1755949403753,2.74,202.52,202.48,6.63822445]
[1755949403953,2.74,202.5,202.46,2.71]
[1755949404159,2.74,202.5,202.47,11.02114055]
[1755949404350,2.74,202.5,202.48,6.63822445]
[1755949404658,7.68,202.5,202.46,2.71]
[1755949404861,7.68,202.5,202.47,6.63837554]
[1755949405059,7.68,202.5,202.46,2.71]
[1755949405258,7.68,202.5,202.47,6.63909125]
[1755949405459,7.68,202.5,202.46,2.71]
[1755949405656,7.68,202.5,202.47,6.63925982]
[1755949405858,7.68,202.5,202.46,2.71]
[1755949406056,7.68,202.5,202.47,6.63925982]
[1755949406361,7.68,202.5,202.46,2.71]
[1755949406549,7.68,202.5,202.47,6.63943508]
[1755949406755,7.68,202.5,202.46,2.71]
[1755949406950,7.68,202.5,202.47,6.63943508]
[1755949407156,7.68,202.5,202.46,2.71]
[1755949407361,2.74,202.52,202.42,2.71]
[1755949407561,2.74,202.52,202.43,6.64289733]
[1755949407761,2.74,202.52,202.44,6.64289733]
[1755949408055,2.74,202.52,202.42,2.71]
[1755949408256,2.74,202.52,202.43,6.64325087]
[1755949408563,4.9407,202.47,202.44,6.64325087]
[1755949408763,4.9407,202.47,202.41,2.71]
[1755949408955,4.9407,202.47,202.42,11.030068]
[1755949409156,4.9407,202.47,202.43,6.64357491]
[1755949409352,4.9407,202.47,202.44,6.64357491]
[1755949409552,4.9407,202.47,202.4,6.28136082]
[1755949409762,27.4359,202.53,202.46,2.71]
[1755949409956,2.74,202.53,202.46,2.71]
[1755949410357,4.9402,202.49,202.43,2.71]
[1755949410559,4.9402,202.49,202.46,2.71]
[1755949410859,4.9402,202.49,202.47,2.71]
[1755949411058,4.9402,202.49,202.48,2.71]
[1755949413662,4.9405,202.47,202.45,2.73]
[1755949413864,4.9405,202.47,202.46,2.73]
[1755949414963,2.64,202.49,202.4,11.22346082]
[1755949415261,2.64,202.49,202.41,13.76405645]
[1755949415458,2.64,202.49,202.42,11.03405645]
[1755949415657,2.64,202.49,202.41,2.73]
[1755949415658,2.64,202.49,202.43,6.64612438]
[1755949415859,2.64,202.49,202.41,2.73]
[1755949416059,2.64,202.49,202.42,6.64529641]
[1755949416262,2.64,202.49,202.43,1.91086497]
[1755949416563,2.64,202.47,202.38,2.73]
[1755949416765,2.64,202.47,202.4,2.73]
[1755949416962,4.9412,202.45,202.41,11.033865]
[1755949417160,4.9412,202.45,202.42,6.6459005]
[1755949417356,2.64,202.5,202.44,2.73]
[1755949418565,4.9406,202.47,202.44,2.73]
[1755949418965,4.9406,202.47,202.45,2.73]
[1755949421866,4.9412,202.45,202.4,4.9421]
[1755949422069,4.9412,202.45,202.42,2.73]
[1755949422265,4.9412,202.45,202.43,6.64513882]
[1755949422467,4.9414,202.44,202.42,2.73]
[1755949422658,4.9414,202.44,202.43,6.64460998]
[1755949423459,4.9414,202.44,202.43,9.37460998]
[1755949424068,7.5814,202.44,202.43,1.91035183]
[1755949424270,4.9418,202.42,202.37,2.73]
[1755949424464,2.64,202.44,202.39,2.73]
[1755949424670,2.64,202.46,202.4,6.64943273]
[1755949424869,2.64,202.46,202.39,2.73]
[1755949425069,2.64,202.46,202.4,6.65104545]
[1755949425271,27.3444,202.46,202.39,2.73]
[1755949425569,27.3444,202.46,202.4,6.64975538]
[1755949425771,27.3444,202.46,202.39,2.73]
[1755949426069,4.9416,202.43,202.39,2.73]
[1755949426272,7.5816,202.43,202.39,2.73]
[1755949426665,4.9418,202.42,202.39,2.73]
[1755949429873,4.9418,202.42,202.4,2.73]
[1755949431972,4.9422,202.41,202.36,2.73]
[1755949432273,2.64,202.46,202.37,6.66526755]
[1755949432473,2.64,202.46,202.38,6.66526755]
[1755949432670,4.942,202.42,202.35,2.73]
[1755949432874,4.942,202.42,202.36,11.02065711]
[1755949433070,7.582,202.42,202.38,2.73]
[1755949434276,4.9421,202.41,202.38,2.73]
[1755949434676,4.9416,202.43,202.36,2.73]
[1755949434977,4.9416,202.43,202.37,6.66468831]
[1755949435182,4.9416,202.43,202.4,2.73]
[1755949435774,7.5816,202.43,202.4,2.73]
[1755949435974,4.9416,202.43,202.37,4.9428]
[1755949436178,4.9416,202.43,202.38,6.6643693]